bitfinex/quotes_ETHUSD_20250518
["timestamp","ask_amount","ask_price","bid_price","bid_amount"]
[1747569466846,3.99787916,2501.4,2501.3,16.56268002]
[1747569470334,3.99767566,2501.5,2501.3,16.56268002]
[1747569470566,3.99733715,2501.7,2501.4,0.7986]
[1747569470866,3.99738063,2501.7,2501.5,16.56268002]
[1747569471359,3.99744163,2501.6,2501.5,16.56268002]
[1747569472367,3.99718757,2501.8,2501.5,16.56268002]
[1747569472869,3.99744163,2501.6,2501.5,16.56268002]
[1747569475886,3.99731486,2501.7,2501.5,12.18255837]
[1747569476384,3.99744163,2501.6,2501.5,12.18255837]
[1747569484902,3.99744163,2501.6,2501.5,12.56517972]
[1747569485493,4.78944163,2501.6,2501.5,12.56517972]
[1747569485992,4.78944163,2501.6,2501.5,12.18255837]
[1747569487507,5.7098777,2501.6,2501.5,12.18255837]
[1747569487801,13.66811728,2501.6,2501.5,2.06255837]
[1747569488504,12.87611728,2501.6,2501.5,2.06255837]
[1747569488801,13.62821728,2501.6,2501.5,2.06255837]
[1747569490105,5.62821728,2501.6,2501.5,2.06255837]
[1747569490271,4.74954163,2501.6,2501.5,2.06255837]
[1747569496005,3.99744163,2501.6,2501.5,2.06255837]
[1747569501026,4.03920205,2501.6,2501.5,2.06255837]
[1747569501927,3.99744163,2501.6,2501.5,2.06255837]
[1747569503603,4.81414163,2501.6,2501.5,2.06255837]
[1747569503927,14.44248728,2501.6,2501.5,2.06255837]
[1747569505901,3.99792108,2501.3,2501.2,2.06255837]
[1747569506096,4.81462108,2501.3,2501.2,2.06255837]
[1747569508943,3.99840063,2501.0,2500.9,2.06255837]
[1747569510338,3.99840063,2501.0,2500.9,2.44537861]
[1747569513299,3.99840063,2501.0,2500.9,2.06255837]
[1747569514609,4.83070063,2501.0,2500.9,2.06255837]
[1747569514932,6.86060613,2501.0,2500.9,2.06255837]
[1747569515132,4.83070063,2501.0,2500.9,2.06255837]
[1747569517859,3.99888031,2500.7,2500.6,2.06255837]
[1747569518549,3.99888031,2500.7,2500.6,2.44534991]
[1747569520658,3.99888031,2500.7,2500.6,2.06255837]
[1747569525759,3.99888031,2500.7,2500.6,2.85435837]
[1747569526355,3.99888031,2500.7,2500.6,2.06255837]
[1747569538769,3.99888031,2500.7,2500.6,2.44543362]
[1747569540770,3.99888031,2500.7,2500.6,2.06255837]
[1747569545391,3.99851227,2501.0,2500.7,0.809]
[1747569545705,3.99869086,2500.9,2500.8,2.06255837]
[1747569546311,3.99869086,2500.9,2500.8,2.44577616]
[1747569550895,3.99869086,2500.9,2500.8,2.06255837]
[1747569553505,11.46469086,2500.9,2500.8,2.06255837]
[1747569557515,3.99831738,2501.1,2500.6,3.99895006]
[1747569557714,3.99831738,2501.1,2500.7,0.774]
[1747569558830,3.9987204,2500.8,2500.7,0.774]
[1747569559378,3.99906743,2500.6,2500.5,0.78]
[1747569559977,3.9987204,2500.8,2500.5,0.78]
[1747569559978,3.99895991,2500.7,2500.5,0.78]
[1747569560178,3.99904023,2500.6,2500.5,0.78]
[1747569560798,3.99904023,2500.6,2500.5,1.16287708]
[1747569561402,3.99862953,2500.9,2500.5,1.16287708]
[1747569561580,3.99862953,2500.9,2500.6,0.78]
[1747569562219,3.99872352,2500.8,2500.6,0.78]
[1747569562386,3.99872352,2500.8,2500.7,0.38287708]
[1747569569327,3.99860228,2500.9,2500.7,0.38287708]
[1747569570006,3.99860228,2500.9,2500.8,0.38287708]
[1747569580841,3.99860228,2500.9,2500.8,2.44543545]
[1747569593739,3.99800946,2501.3,2500.9,0.8229]
[1747569594623,3.99800946,2501.3,2501.0,0.38287708]
[1747569594824,3.99784887,2501.4,2501.1,0.8229]
[1747569596251,3.99784887,2501.4,2501.2,0.38287708]
[1747569596846,3.99792108,2501.3,2501.2,0.38287708]
[1747569598753,3.99792108,2501.3,2501.2,12.56543545]
[1747569600454,3.99792108,2501.3,2501.2,2.44543545]
[1747569604178,4.0396815,2501.3,2501.2,2.44543545]
[1747569604457,5.58399244,2501.3,2501.2,2.44543545]
[1747569605677,5.58399244,2501.3,2501.2,2.06255837]
[1747569606377,28.49599244,2501.3,2501.2,2.06255837]
[1747569610781,3.99840063,2501.0,2500.9,2.06255837]
[1747569612679,4.78920063,2501.0,2500.9,2.06255837]
[1747569613878,4.83096105,2501.0,2500.9,2.06255837]
[1747569614280,3.99912677,2500.6,2500.4,0.7951]
[1747569614579,3.99920015,2500.5,2500.4,0.7951]
[1747569615280,0.7767,2501.3,2500.5,0.787]
[1747569615581,3.99829555,2501.1,2500.7,0.787]
[1747569616448,3.99830901,2501.1,2500.7,0.787]
[1747569616648,3.99815801,2501.2,2500.8,1.16971963]
[1747569616983,3.99824635,2501.1,2500.9,0.787]
[1747569617649,3.99824635,2501.1,2501.0,0.38271963]
[1747569618648,3.99817157,2501.2,2501.0,0.38271963]
[1747569618880,3.99824077,2501.1,2501.0,0.38271963]
[1747569619685,3.99777395,2501.4,2501.1,0.7798]
[1747569620183,3.99793101,2501.3,2501.1,0.7798]
[1747569620551,3.99785311,2501.4,2501.1,0.7798]
[1747569620750,3.99785311,2501.4,2501.2,0.38271963]
[1747569621467,3.99792108,2501.3,2501.2,0.38271963]
[1747569622279,3.99728184,2501.7,2501.2,0.38271963]
[1747569622582,3.99783219,2501.4,2501.2,0.38271963]
[1747569624058,3.99783219,2501.4,2501.3,0.38271963]
[1747569625285,3.99728184,2501.7,2501.3,2.445278]
[1747569625492,3.99751562,2501.6,2501.5,0.7924]
[1747569628790,3.99751562,2501.6,2501.5,2.85495837]
[1747569633495,3.99751562,2501.6,2501.5,2.06255837]
[1747569634703,3.99736201,2501.7,2501.5,2.06255837]
[1747569634869,3.99743532,2501.7,2501.6,2.06255837]
[1747569638200,4.75713532,2501.7,2501.6,2.06255837]
[1747569638771,3.99743532,2501.7,2501.6,2.06255837]
[1747569643609,4.87286443,2501.7,2501.6,2.06255837]
[1747569644519,21.17052485,2501.7,2501.6,2.06255837]
[1747569644679,21.12876443,2501.7,2501.6,2.06255837]
[1747569645002,3.99824077,2501.1,2501.0,2.06255837]
[1747569650094,3.99815512,2501.2,2501.0,2.06255837]
[1747569650906,3.99824077,2501.1,2501.0,2.06255837]
[1747569651099,12.23204458,2501.7,2501.0,2.06255837]
[1747569651338,3.99794901,2501.3,2501.0,2.06255837]
[1747569651712,3.99794901,2501.3,2501.1,0.38245837]
[1747569652240,3.99808092,2501.2,2501.1,0.38245837]
[1747569652826,3.99808092,2501.2,2501.1,2.44501674]
[1747569653446,4.87319287,2501.2,2501.1,2.44501674]
[1747569654442,12.87319287,2501.2,2501.1,2.44501674]
[1747569654602,12.87319287,2501.2,2501.1,2.06255837]
[1747569655007,20.32519287,2501.2,2501.1,2.06255837]
[1747569656159,21.08029287,2501.2,2501.1,2.06255837]
[1747569656464,12.75366051,2500.9,2500.8,2.06255837]
[1747569656634,3.99920015,2500.5,2500.4,2.06255837]
[1747569659952,4.79690015,2500.5,2500.4,2.06255837]
[1747569661966,12.79690015,2500.5,2500.4,2.06255837]
[1747569664950,3.99968002,2500.2,2500.1,2.06255837]
[1747569667075,4.04144044,2500.2,2500.1,2.06255837]
[1747569667247,12.82764,2500.1,2500.0,2.06255837]
[1747569667441,4.00096023,2499.4,2499.3,12.18255837]
[1747569667660,4.00096023,2499.4,2499.3,2.06255837]
[1747569668674,8.7769,2500.5,2499.5,0.8096]
[1747569668863,4.00017712,2499.9,2499.6,12.18255837]
[1747569669160,4.00032002,2499.8,2499.7,12.18255837]
[1747569669352,4.00032002,2499.8,2499.1,4.00137947]
[1747569669353,4.00048005,2499.7,2499.6,2.06255837]
[1747569671177,4.00096023,2499.4,2499.3,2.06255837]
[1747569671785,4.00087327,2499.5,2499.3,2.06255837]
[1747569671971,4.77721467,2499.9,2499.3,2.06255837]
[1747569671972,7.452,2499.9,2499.3,2.06255837]
[1747569672153,4.00043664,2499.8,2499.4,0.8096]
[1747569672348,4.0001627,2499.9,2499.5,12.18255837]
[1747569672349,4.00018782,2499.9,2499.5,12.18255837]
[1747569672564,4.00034559,2499.8,2499.5,12.98255837]
[1747569673088,4.00000114,2500.0,2499.5,12.98255837]
[1747569673286,4.00000114,2500.0,2499.7,0.775]
[1747569673780,4.00032002,2499.8,2499.7,0.775]
[1747569673982,4.00021019,2499.9,2499.7,0.775]
[1747569674383,4.00032002,2499.8,2499.7,0.775]
[1747569674984,4.00022123,2499.9,2499.7,0.775]
[1747569675156,4.00032002,2499.8,2499.7,0.775]
[1747569675980,4.77645712,2500.3,2499.7,0.775]
[1747569676180,17.07267571,2500.3,2499.7,0.775]
[1747569676360,0.04176042,2500.2,2499.7,0.775]
[1747569676683,3.99996185,2500.1,2499.7,0.775]
[1747569676889,4.00001525,2500.0,2499.8,2.06255837]
[1747569677291,4.00016,2499.9,2499.8,2.06255837]
[1747569677660,4.00008593,2500.0,2499.8,2.06255837]
[1747569677986,3.99960233,2500.3,2500.0,0.775]
[1747569678186,3.99960233,2500.3,2500.1,2.06255837]
[1747569678403,3.99968002,2500.2,2500.1,2.06255837]
[1747569678585,3.99960484,2500.3,2500.1,2.06255837]
[1747569678765,0.028,2708.3,2500.1,2.06255837]
[1747569678766,3.99807241,2501.3,2500.5,0.775]
[1747569678967,3.99880231,2500.8,2500.5,0.775]
[1747569679584,3.99904023,2500.6,2500.5,0.775]
[1747569680161,3.99868855,2500.9,2500.5,0.775]
[1747569680622,3.99875302,2500.8,2500.5,0.775]
[1747569680829,3.99868855,2500.9,2500.5,0.775]
[1747569680830,3.99861338,2500.9,2500.5,0.775]
[1747569680979,3.99861338,2500.9,2500.7,0.8]
[1747569681380,3.9987204,2500.8,2500.7,0.8]
[1747569682599,4.79844962,2500.8,2500.7,0.8]
[1747569682879,5.62754962,2500.8,2500.7,0.8]
[1747569683084,3.99939559,2500.4,2500.1,8.271]
[1747569683993,4.8278204,2500.8,2500.1,0.775]
[1747569684306,3.99944758,2500.4,2500.1,0.775]
[1747569684507,3.99953959,2500.3,2500.1,8.269]
[1747569684805,3.99922262,2500.5,2499.9,1.25354707]
[1747569685033,3.99980054,2500.2,2499.9,1.25354707]
[1747569685337,3.99922262,2500.5,2499.9,1.25354707]
[1747569685490,3.99922262,2500.5,2499.9,0.775]
[1747569685491,3.99982051,2500.2,2499.9,0.775]
[1747569685703,3.99979921,2500.2,2499.9,0.775]
[1747569685933,14.947,2500.7,2499.9,0.775]
[1747569686148,14.947,2500.7,2500.1,0.8]
[1747569686149,3.99888534,2500.7,2500.1,0.8]
[1747569686348,3.99840063,2501.0,2500.3,3.99941772]
[1747569686552,3.99848017,2501.0,2500.5,3.99919109]
[1747569686752,0.43008551,2501.5,2500.6,0.775]
[1747569686949,3.99788646,2501.4,2500.8,0.775]
[1747569687149,3.99776125,2501.4,2500.8,12.2245986]
[1747569687446,3.997503,2501.6,2501.0,3.9982952]
[1747569687655,3.99752379,2501.6,2501.0,4.77325051]
[1747569687946,3.99729579,2501.7,2501.3,0.7521]
[1747569687947,8.0,2501.7,2501.3,0.7521]
[1747569688114,3.99714051,2501.8,2501.3,0.7521]
[1747569688115,3.99746797,2501.6,2501.3,0.7521]
[1747569688714,3.99729036,2501.7,2501.3,0.7521]
[1747569688715,3.99761203,2501.5,2501.3,0.7521]
[1747569689098,3.99776125,2501.4,2501.3,0.7521]
[1747569690542,3.99810215,2501.2,2501.1,0.7521]
[1747569691916,3.99810215,2501.2,2501.1,2.06255837]
[1747569694728,3.99864863,2500.9,2500.7,8.2021]
[1747569695142,3.99864863,2500.9,2500.5,7.45]
[1747569695143,3.9987204,2500.8,2500.5,7.45]
[1747569695316,3.99893572,2500.7,2500.5,14.978]
[1747569695845,3.99913044,2500.6,2500.3,15.7473]
[1747569696010,3.99895247,2500.7,2500.3,8.2193]
[1747569696214,3.99905943,2500.6,2500.3,0.7703]
[1747569696445,3.99905943,2500.6,2500.3,15.7473]
[1747569696846,3.99921614,2500.5,2500.3,15.7473]
[1747569697148,3.99921614,2500.5,2500.3,0.7703]
[1747569697447,3.99920015,2500.5,2500.3,0.7703]
[1747569697810,3.9993601,2500.4,2500.3,0.7703]
[1747569698011,3.99928973,2500.5,2500.3,0.7703]
[1747569698637,3.9993601,2500.4,2500.3,0.7703]
[1747569698836,3.9993601,2500.4,2500.1,19.041]
[1747569699043,3.9993601,2500.4,2500.1,19.8245]
[1747569699645,3.99927247,2500.5,2500.1,19.8245]
[1747569699830,3.99927247,2500.5,2500.1,12.2975]
[1747569700154,3.99899698,2500.7,2500.2,3.99960138]
[1747569700322,3.99899698,2500.7,2500.2,3.99968002]
[1747569700517,3.99899698,2500.7,2500.2,4.78318002]
[1747569700728,3.99899698,2500.7,2500.3,3.99948981]
[1747569701059,3.99899698,2500.7,2500.2,4.78308985]
[1747569701354,3.99925028,2500.5,2500.2,0.7835]
[1747569701543,3.99912327,2500.6,2500.2,0.7835]
[1747569701750,3.99895658,2500.7,2500.2,4.78316298]
[1747569702960,3.99899152,2500.7,2500.2,0.7835]
[1747569703259,3.99873465,2500.8,2500.2,4.78311195]
[1747569703461,3.99856051,2500.9,2500.2,0.7835]
[1747569703763,3.9992986,2500.5,2500.2,0.7835]
[1747569704565,3.9992986,2500.5,2500.3,0.38168712]
[1747569705378,3.99882485,2500.8,2500.3,4.38119616]
[1747569705689,3.99882485,2500.8,2500.4,0.38168712]
[1747569706202,3.99882485,2500.8,2500.5,0.7749]
[1747569706996,19.86959822,2501.2,2500.5,0.7749]
[1747569707178,22.65655804,2501.2,2500.5,0.7749]
[1747569707380,3.99867739,2500.9,2500.5,0.7749]
[1747569708497,3.99872865,2500.8,2500.5,0.7749]
[1747569708990,3.99872865,2500.8,2500.6,0.38222345]
[1747569709889,3.99872865,2500.8,2500.7,2.06255837]
[1747569710059,3.99862602,2500.9,2500.7,2.06255837]
[1747569710589,3.99842334,2501.0,2500.7,2.06255837]
[1747569710590,3.9984087,2501.0,2500.7,2.06255837]
[1747569710793,3.99820579,2501.2,2500.8,0.7749]
[1747569710952,3.99805229,2501.3,2500.8,4.77362014]
[1747569711157,3.99810099,2501.2,2500.8,4.77362014]
[1747569711792,3.99801287,2501.3,2500.8,4.77362014]
[1747569712285,3.99760353,2501.5,2500.9,16.18104099]
[1747569712495,8.3585,2501.9,2501.1,3.9982307]
[1747569712699,10.74685,2501.9,2501.2,0.7749]
[1747569712879,3.99755542,2501.6,2501.2,0.81487656]
[1747569713086,3.99755542,2501.6,2501.2,0.7749]
[1747569713260,3.99755542,2501.6,2501.2,0.81487656]
[1747569713765,3.99762445,2501.5,2501.2,0.7749]
[1747569714273,3.99762445,2501.5,2501.3,0.38216439]
[1747569715693,3.99762445,2501.5,2501.2,0.7749]
[1747569715905,3.99762445,2501.5,2501.3,2.06255837]
[1747569717003,3.99776125,2501.4,2501.3,2.06255837]
[1747569720305,3.99762445,2501.5,2501.3,2.06255837]
[1747569720507,7.526,2502.0,2500.9,19.04353073]
[1747569720508,11.51,2503.5,2501.4,2.88375837]
[1747569720727,11.51,2503.5,2501.8,0.8212]
[1747569720728,0.7672,2502.3,2501.8,0.8212]
[1747569720918,3.99688051,2502.0,2501.8,0.8212]
[1747569721226,3.99688051,2502.0,2501.9,2.06255837]
[1747569723735,4.81008051,2502.0,2501.9,2.06255837]
[1747569723917,5.69075589,2502.0,2501.9,2.06255837]
[1747569724733,3.99712207,2501.8,2501.7,2.06255837]
[1747569725131,4.81032207,2501.8,2501.7,2.06255837]
[1747569725304,3.99744163,2501.6,2501.5,2.06255837]
[1747569726032,3.99776125,2501.4,2501.3,2.06255837]
[1747569726239,5.27836473,2501.4,2501.3,2.06255837]
[1747569727951,13.27836473,2501.4,2501.3,2.06255837]
[1747569728354,11.99776125,2501.4,2501.3,2.06255837]
[1747569730973,3.99824077,2501.1,2501.0,2.06255837]
[1747569732484,4.81174077,2501.1,2501.0,2.06255837]
[1747569733850,3.99856051,2500.9,2500.8,2.06255837]
[1747569734267,3.99888031,2500.7,2500.6,2.06255837]
[1747569734446,3.99904023,2500.6,2500.5,2.06255837]
[1747569736970,8.0,2500.9,2500.5,2.06255837]
[1747569737187,3.99888253,2500.7,2500.5,2.06255837]
[1747569738060,3.99904023,2500.6,2500.5,2.06255837]
[1747569743397,4.87526542,2500.6,2500.5,2.06255837]
[1747569743758,3.99952005,2500.3,2500.2,2.06255837]
[1747569749379,4.80022005,2500.3,2500.2,2.06255837]
[1747569751075,3.99952005,2500.3,2500.2,2.06255837]
[1747569752227,3.99935301,2500.5,2500.2,2.06255837]
[1747569752508,3.99901946,2500.7,2500.3,0.8099]
[1747569752815,3.99901946,2500.7,2500.3,12.99245837]
[1747569753376,3.99856051,2500.9,2500.3,0.8099]
[1747569753674,3.99928128,2500.5,2500.3,0.8099]
[1747569754434,3.99873504,2500.8,2500.3,0.8099]
[1747569754729,3.99898807,2500.7,2500.3,0.8099]
[1747569754874,3.99840063,2501.0,2500.3,0.8099]
[1747569755222,3.99908649,2500.6,2500.3,0.8099]
[1747569755538,3.99935237,2500.5,2500.3,0.8099]
[1747569755843,3.9993601,2500.4,2500.3,0.8099]
[1747569755972,3.99952005,2500.3,2500.2,0.9]
[1747569757504,4.80022005,2500.3,2500.2,0.9]
[1747569757700,4.00016,2499.9,2499.8,0.8099]
[1747569758287,4.00016,2499.9,2499.8,1.19234324]
[1747569758495,4.00016,2499.9,2499.8,0.38244324]
[1747569760007,4.00032002,2499.8,2499.6,0.7546]
[1747569761887,4.00048005,2499.7,2499.6,0.7546]
[1747569762510,4.00069854,2499.6,2499.4,0.7546]
[1747569763216,4.00069854,2499.6,2499.5,0.38255995]
[1747569765011,4.00107165,2499.4,2499.2,1.27844707]
[1747569765372,4.00108414,2499.4,2499.2,1.27844707]
[1747569766208,4.00108414,2499.4,2499.3,0.38234555]
[1747569768414,4.00108414,2499.4,2499.0,11.50226639]
[1747569768619,4.00108414,2499.4,2499.1,2.06255837]
[1747569769945,4.00108414,2499.4,2499.2,0.38215337]
[1747569771638,4.00108414,2499.4,2499.1,2.06255837]
[1747569772136,4.00089417,2499.5,2499.1,2.06255837]
[1747569772337,4.00096619,2499.4,2499.1,2.06255837]
[1747569772834,4.00096619,2499.4,2499.2,2.06255837]
[1747569773030,8.29313439,2500.0,2499.2,2.06255837]
[1747569773031,4.00112031,2499.3,2499.2,2.06255837]
[1747569773237,0.7882,2499.5,2499.0,11.50226639]
[1747569773238,4.00144051,2499.1,2499.0,10.70936639]
[1747569775530,4.00131437,2499.2,2499.0,10.70936639]
[1747569775531,4.00136852,2499.2,2499.0,10.70936639]
[1747569775710,4.00144051,2499.1,2499.0,10.70936639]
[1747569777942,4.00129417,2499.2,2499.0,10.70936639]
[1747569778346,4.00144051,2499.1,2499.0,10.70936639]
[1747569779337,4.00119163,2499.3,2499.0,10.70936639]
[1747569779542,4.00102215,2499.4,2499.0,10.70936639]
[1747569779844,0.7912,2499.7,2499.1,0.7544]
[1747569780017,4.00080516,2499.5,2499.1,0.7544]
[1747569780340,4.00089514,2499.5,2499.1,0.7544]
[1747569780530,4.00089514,2499.5,2499.1,0.79441071]
[1747569780729,4.00089514,2499.5,2499.1,0.7544]
[1747569780977,0.7912,2500.0,2499.1,0.7544]
[1747569781147,4.00055007,2499.7,2499.4,0.7544]
[1747569781752,4.00065057,2499.6,2499.4,0.7544]
[1747569783489,4.00065057,2499.6,2499.5,0.9]
[1747569783977,4.00050435,2499.7,2499.5,0.9]
[1747569784889,4.00050435,2499.7,2499.6,6.06]
[1747569786664,4.8005876,2499.7,2499.6,6.06]
[1747569787287,4.00050435,2499.7,2499.6,6.06]
[1747569790103,12.79170435,2499.7,2499.6,6.06]
[1747569791702,20.30570435,2499.7,2499.6,6.06]
[1747569793378,4.00112031,2499.3,2499.2,6.06]
[1747569795910,5.6563614,2499.3,2499.2,6.06]
[1747569796907,4.0012804,2499.2,2499.1,6.06]
[1747569800023,4.00120919,2499.3,2499.1,6.06]
[1747569800317,4.0012804,2499.2,2499.1,6.06]
[1747569809713,12.00144051,2499.1,2499.0,16.76936639]
[1747569809893,14.88340352,2499.1,2499.0,16.76936639]
[1747569810298,15.69910352,2499.1,2499.0,10.70936639]
[1747569811833,5.67668193,2500.1,2499.1,0.7614]
[1747569812021,5.67668193,2500.1,2499.3,0.7614]
[1747569812222,4.00088464,2499.5,2499.3,0.7614]
[1747569812414,4.00066572,2499.6,2499.3,0.7614]
[1747569812615,4.00095596,2499.5,2499.3,0.7614]
[1747569812811,4.00090646,2499.5,2499.3,0.7614]
[1747569813018,4.00071681,2499.6,2499.3,0.7614]
[1747569813321,4.00071908,2499.6,2499.3,0.7614]
[1747569813524,4.00065294,2499.6,2499.3,0.7614]
[1747569814022,4.00065294,2499.6,2499.4,0.38260026]
[1747569814838,4.00080016,2499.5,2499.4,0.38260026]
[1747569815733,4.00121665,2499.3,2499.1,0.8181]
[1747569815926,4.00122202,2499.3,2499.1,0.8181]
[1747569816327,4.0012804,2499.2,2499.1,0.8181]
[1747569816527,4.00120074,2499.3,2499.1,0.8181]
[1747569817105,4.00120074,2499.3,2499.2,0.38271607]
[1747569818424,4.04296116,2499.3,2499.2,0.38271607]
[1747569818624,5.55749926,2499.3,2499.2,0.38271607]
[1747569818824,4.00144051,2499.1,2499.0,10.70936639]
[1747569820037,12.00144051,2499.1,2499.0,10.70936639]
[1747569826031,12.79594051,2499.1,2499.0,10.70936639]
[1747569827719,12.00144051,2499.1,2499.0,10.70936639]
[1747569828549,4.00144051,2499.1,2499.0,10.70936639]
[1747569829526,4.00144051,2499.1,2499.0,11.60936639]
[1747569832446,4.00144051,2499.1,2499.0,10.70936639]
[1747569834652,4.00144051,2499.1,2499.0,11.60936639]
[1747569835456,4.00144051,2499.1,2499.0,10.70936639]
[1747569836468,4.00115042,2499.3,2499.0,10.70936639]
[1747569836764,4.00144051,2499.1,2499.0,10.70936639]
[1747569840934,16.4135,2499.5,2499.0,10.70936639]
[1747569841139,4.00143064,2499.2,2499.1,0.8135]
[1747569841947,4.00143064,2499.2,2499.1,6.8735]
[1747569843071,4.00143064,2499.2,2499.1,6.06]
[1747569853612,13.32183064,2499.2,2499.1,6.06]
[1747569853913,12.55144051,2499.1,2499.0,10.70936639]
[1747569854073,13.32184051,2499.1,2499.0,10.70936639]
[1747569854268,28.43984051,2499.1,2499.0,10.70936639]
[1747569855003,27.89184051,2499.1,2499.0,10.70936639]
[1747569856094,12.77184051,2499.1,2499.0,10.70936639]
[1747569856333,30.29141954,2499.1,2499.0,10.70936639]
[1747569856934,15.17441954,2499.1,2499.0,10.70936639]
[1747569857137,30.29041954,2499.1,2499.0,10.70936639]
[1747569859334,30.84041954,2499.1,2499.0,10.70936639]
[1747569860604,21.96001954,2499.1,2499.0,10.70936639]
[1747569860819,11.55744051,2499.1,2499.0,10.70936639]
[1747569861140,20.87784051,2499.1,2499.0,10.70936639]
[1747569861529,27.90384051,2499.1,2499.0,10.70936639]
[1747569863012,28.45384051,2499.1,2499.0,10.70936639]
[1747569864643,28.45884051,2499.1,2499.0,10.70936639]
[1747569864850,32.53456752,2499.1,2499.0,10.70936639]
[1747569865352,16.84756752,2499.1,2499.0,10.70936639]
[1747569865556,31.98956752,2499.1,2499.0,10.70936639]
[1747569866749,32.53956752,2499.1,2499.0,10.70936639]
[1747569868566,31.21916752,2499.1,2499.0,10.70936639]
[1747569868722,12.00144051,2499.1,2499.0,10.70936639]
[1747569868928,11.55744051,2499.1,2499.0,10.70936639]
[1747569869335,4.0001549,2500.0,2499.1,0.8326]
[1747569869336,4.00125056,2499.3,2499.1,0.8326]
[1747569869541,0.7968,2499.7,2499.1,0.8326]
[1747569869742,4.0012804,2499.2,2499.1,0.8326]
[1747569874809,4.00144051,2499.1,2499.0,10.70936639]
[1747569882282,4.8017126,2499.1,2499.0,10.70936639]
[1747569882492,12.8017126,2499.1,2499.0,10.70936639]
[1747569884968,12.00144051,2499.1,2499.0,10.70936639]
[1747569886484,12.55144051,2499.1,2499.0,10.70936639]
[1747569886687,13.38124051,2499.1,2499.0,10.70936639]
[1747569890389,12.88554815,2499.1,2499.0,10.70936639]
[1747569893892,28.01954815,2499.1,2499.0,10.70936639]
[1747569894094,32.09527516,2499.1,2499.0,10.70936639]
[1747569894414,24.53027516,2499.1,2499.0,10.70936639]
[1747569894615,32.09427516,2499.1,2499.0,10.70936639]
[1747569897225,32.09427516,2499.1,2499.0,2.24993984]
[1747569897380,4.00320256,2498.0,2497.9,0.8026]
[1747569897817,4.00336282,2497.9,2497.8,6.06]
[1747569898119,12.00336282,2497.9,2497.8,6.06]
[1747569898423,12.0035231,2497.8,2497.7,10.97107438]
[1747569898583,27.1405231,2497.8,2497.7,10.97107438]
[1747569899219,28.02119848,2497.8,2497.7,10.97107438]
[1747569899583,29.34119848,2497.8,2497.7,10.97107438]
[1747569901166,29.63709002,2497.8,2497.7,10.97107438]
[1747569901720,28.88309002,2497.8,2497.7,10.97107438]
[1747569901887,27.45341464,2497.8,2497.7,10.97107438]
[1747569902526,12.0035231,2497.8,2497.7,10.97107438]
[1747569902687,4.0035231,2497.8,2497.7,11.75117438]
[1747569904413,4.00240144,2498.5,2497.8,0.7977]
[1747569904593,4.00328214,2498.0,2497.9,6.8577]
[1747569904786,4.00328214,2498.0,2497.9,9.65257744]
[1747569905443,4.00310798,2498.1,2498.0,0.7977]
[1747569905741,4.00310798,2498.1,2498.0,6.8577]
[1747569906835,4.00310798,2498.1,2498.0,6.06]
[1747569910846,4.00320256,2498.0,2497.9,0.7977]
[1747569912763,4.00277142,2498.3,2497.9,0.7977]
[1747569913057,4.00320256,2498.0,2497.9,0.7977]
[1747569913263,15.308,2498.4,2497.9,2.58057744]
[1747569913562,4.00320256,2498.0,2497.9,2.58057744]
[1747569913742,7.655,2498.5,2497.9,1.78287744]
[1747569913943,4.0029952,2498.2,2498.0,0.8062]
[1747569914955,4.00304231,2498.1,2498.0,0.8062]
[1747569915945,12.00218837,2498.7,2498.0,1.67110774]
[1747569916269,4.00252291,2498.5,2498.2,0.8062]
[1747569916430,4.00263716,2498.4,2498.2,0.8062]
[1747569917053,4.00249183,2498.5,2498.2,0.8062]
[1747569917267,4.00234668,2498.6,2498.3,6.06]
[1747569917564,4.00254301,2498.5,2498.3,6.06]
[1747569917965,4.00256163,2498.4,2498.3,6.06]
[1747569918168,4.00244245,2498.5,2498.3,6.06]
[1747569918339,4.00016,2499.9,2498.7,0.8062]
[1747569918539,4.00160064,2499.0,2498.9,0.8062]
[1747569919465,3.98864664,2499.0,2498.9,0.8062]
[1747569919630,15.30475763,2499.4,2498.9,0.8062]
[1747569919832,3.97641435,2499.1,2498.9,0.8062]
[1747569920056,3.98906061,2499.0,2498.9,0.8062]
[1747569920259,3.97590387,2499.0,2498.9,0.8062]
[1747569923767,8.7967,2499.7,2498.9,0.8062]
[1747569923768,4.00075087,2499.6,2498.9,0.8062]
[1747569924074,4.00096023,2499.4,2498.9,0.8062]
[1747569924242,4.00135474,2499.2,2498.9,0.8062]
[1747569924634,11.65285317,2499.5,2498.9,0.8062]
[1747569924834,4.00160064,2499.0,2498.9,0.8062]
[1747569925062,4.00152384,2499.1,2498.9,0.8062]
[1747569925963,0.7967,2499.7,2498.9,0.8062]
[1747569926142,2.07940881,2501.7,2498.6,4.00222577]
[1747569926143,4.00081989,2499.5,2499.0,0.7982]
[1747569926469,4.00096809,2499.4,2499.1,0.7982]
[1747569926676,11.6522824,2499.9,2499.1,4.00135815]
[1747569926677,4.00082096,2499.5,2499.1,4.00135815]
[1747569926835,4.00082096,2499.5,2499.2,0.7982]
[1747569928571,4.00059555,2499.7,2499.3,0.7664]
[1747569928775,4.00059555,2499.7,2499.3,1.64330702]
[1747569928974,4.00059555,2499.7,2499.4,6.06]
[1747569929179,4.00059555,2499.7,2499.5,6.06]
[1747569929180,4.0006199,2499.7,2499.5,6.06]
[1747569929540,4.0006401,2499.6,2499.5,6.06]
[1747569929768,4.00052545,2499.7,2499.5,6.06]
[1747569930284,4.0006401,2499.6,2499.5,6.06]
[1747569933186,4.04240052,2499.6,2499.5,6.06]
[1747569933346,4.0006401,2499.6,2499.5,6.06]
[1747569933701,4.0012804,2499.2,2499.1,6.06]
[1747569937975,4.00120406,2499.3,2499.1,6.8415]
[1747569938583,15.302,2499.6,2499.1,8.53765]
[1747569938783,4.00099682,2499.4,2499.1,8.53765]
[1747569938949,4.00082843,2499.5,2499.1,8.53765]
[1747569939150,4.00077803,2499.6,2499.1,6.47900615]
[1747569939346,4.00083067,2499.5,2499.1,2.47765]
[1747569939551,4.00083067,2499.5,2499.2,0.64791649]
[1747569940772,4.00077803,2499.6,2499.2,0.64791649]
[1747569940773,4.00096567,2499.4,2499.2,0.64791649]
[1747569940961,4.00077803,2499.6,2499.1,2.47765]
[1747569940962,4.0012804,2499.2,2499.1,2.47765]
[1747569941288,4.0012804,2499.2,2499.1,0.7815]
[1747569941651,4.00158634,2499.1,2498.7,0.7815]
[1747569941857,4.00147142,2499.1,2498.7,16.0715]
[1747569942068,4.00171624,2499.0,2498.7,2.8367442]
[1747569942299,4.00171624,2499.0,2498.7,0.7815]
[1747569944591,4.00192092,2498.8,2498.7,0.7815]